lending/lending_fUSD_20251106
["ID","MTS","AMOUNT","RATE_DAILY","PERIOD"]
[393267038,1762405832288,-500.0,0.00015573,2]
[393267039,1762405832297,-500.0,0.00015573,2]
[393267040,1762405832306,-929.33,0.00015586,2]
[393267041,1762405832315,-151.0,0.00015588,2]
[393267042,1762405832324,-151.0,0.00015588,2]
[393267043,1762405832334,-151.0,0.00015588,2]
[393267044,1762405832343,-151.0,0.00015588,2]
[393267045,1762405832352,-151.0,0.00015588,2]
[393267046,1762405832361,-246.20025685,0.00015588,2]
[393267047,1762405832370,-151.0,0.00015588,2]
[393267048,1762405832379,-151.0,0.00015588,2]
[393267049,1762405832388,-151.0,0.00015588,2]
[393267050,1762405832397,-151.0,0.00015588,2]
[393267052,1762405832406,-151.0,0.00015588,2]
[393267054,1762405832415,-151.0,0.00015588,2]
[393267056,1762405832424,-151.0,0.00015588,2]
[393267058,1762405832434,-151.0,0.00015588,2]
[393267060,1762405832443,-151.0,0.00015588,2]
[393267062,1762405832452,-151.0,0.00015588,2]
[393267064,1762405832461,-173.00943357,0.00015588,2]
[393267066,1762405832470,-5000.0,0.00015593,2]
[393267068,1762405832479,-500.0,0.00015597,2]
[393267070,1762405832492,-500.0,0.00015597,2]
[393267072,1762405832501,-420000.0,0.00015598,2]
[393267074,1762405832510,-1000.0,0.00015598,2]
[393267076,1762405832519,-24869.7653,0.00015598,2]
[393267078,1762405832529,-166.66,0.00015611,2]
[393267080,1762405832539,-3331.38016276,0.00015674,2]
[393267082,1762405832548,-500.0,0.00015692,2]
[393267084,1762405832557,-500.0,0.00015696,2]
[393267086,1762405832568,-500.0,0.00015696,2]
[393267088,1762405832577,-500.0,0.00015696,2]
[393267090,1762405832587,-500.0,0.00015696,2]
[393267091,1762405832596,-500.0,0.00015696,2]
[393267094,1762405832605,-166.66,0.00015821,2]
[393267095,1762405832614,-929.33,0.0001586,2]
[393267096,1762405832623,-3331.38016276,0.00015952,2]
[393267097,1762405832632,-171.03845643,0.00015978,2]
[393267098,1762405832642,-267.35698253,0.00016029,2]
[393267099,1762405832651,-500.0,0.00016029,2]
[393267100,1762405832660,-500.0,0.00016029,2]
[393267101,1762405832669,-500.0,0.00016029,2]
[393267102,1762405832678,-150.94971117,0.00016099,2]
[393267103,1762405832688,-308.63786898,0.00016121,2]
[393267104,1762405832696,-1000.0,0.00016121,2]
[393267105,1762405832705,-186.23216065,0.00016121,2]
[393267106,1762405832715,-166.66,0.00016126,2]
[393267107,1762405832723,-929.33,0.00016134,2]
[393267108,1762405832732,-166.66,0.00016147,2]
[393267109,1762405832741,-3331.38016276,0.00016231,2]
[393267110,1762405832750,-610.0,0.00016231,2]
[393267111,1762405832759,-268.22,0.00016379,2]
[393267112,1762405832768,-420.0,0.00016384,2]
[393267113,1762405832777,-420.0,0.00016384,2]
[393267114,1762405832786,-929.33,0.00016408,2]
[393267115,1762405832797,-500.0,0.00016438,2]
[393267116,1762405832805,-500.0,0.00016438,2]
[393267117,1762405832814,-1246.98,0.00016438,2]
[393267118,1762405832822,-150.0,0.00016438,2]
[393267119,1762405832831,-150.0,0.00016438,2]
[393267120,1762405832840,-150.0,0.00016438,2]
[393267121,1762405832850,-150.0,0.00016438,2]
[393267122,1762405832858,-150.0,0.00016438,2]
[393267123,1762405832867,-322.83,0.00016438,2]
[393267124,1762405832876,-150.0,0.00016438,2]
[393267125,1762405832885,-150.0,0.00016438,2]
[393267126,1762405832894,-150.0,0.00016438,2]
[393267127,1762405832903,-150.0,0.00016438,2]
[393267128,1762405832912,-150.0,0.00016438,2]
[393267129,1762405832921,-171.03845643,0.00016459,2]
[393267130,1762405832930,-1680.0,0.00016466,2]
[393267131,1762405832939,-250.0,0.00016467,2]
[393267132,1762405832948,-300.0,0.00016468,2]
[393267133,1762405832957,-300.0,0.00016468,2]
[393267134,1762405832966,-300.0,0.00016468,2]
[393267135,1762405832975,-300.0,0.00016468,2]
[393267136,1762405832984,-300.0,0.00016468,2]
[393267137,1762405832993,-166.66,0.00016473,2]
[393267138,1762405833002,-300.0,0.0001649,2]
[393267139,1762405833011,-500.0,0.00016493,2]
[393267140,1762405833021,-3331.38016276,0.00016509,2]
[393267141,1762405833030,-166.66,0.00016641,2]
[393267142,1762405833039,-325.99061322,0.00016668,2]
[393267143,1762405833048,-929.33,0.00016682,2]
[393267144,1762405833057,-150.94971117,0.00016699,2]
[393267145,1762405833066,-893.73840764,0.00016716,2]
[393267146,1762405833075,-415.63,0.00016751,2]
[393267147,1762405833085,-3331.38016276,0.00016787,2]
[393267148,1762405833094,-166.66,0.00016799,2]
[393267149,1762405833103,-221.80400124,0.00016805,2]
[393267150,1762405833112,-1228.92097086,0.00016886,2]
[393267151,1762405833121,-1800.0,0.000169,6]
[393267152,1762405833130,-301.2,0.0001693,2]
[393267153,1762405833139,-327.18,0.00016932,2]
[393267154,1762405833148,-171.03845643,0.00016939,2]
[393267155,1762405833158,-846.9738379,0.00016944,2]
[393267156,1762405833167,-180.89258404,0.00016944,2]
[393267157,1762405833176,-929.33,0.00016956,2]
[393267158,1762405833186,-150.0,0.00016964,2]
[393267159,1762405833195,-150.0,0.00016964,2]
[393267160,1762405833204,-150.0,0.00016964,2]
[393267161,1762405833215,-500.0,0.00016964,2]
[393267162,1762405833224,-500.0,0.00016964,2]
[393267163,1762405833233,-150.0,0.00016964,2]
[393267164,1762405833242,-150.0,0.00016964,2]
[393267165,1762405833251,-500.0,0.00016964,2]
[393267166,1762405833260,-571.0,0.00016964,2]
[393267167,1762405833270,-150.0,0.00016964,2]
[393267168,1762405833279,-500.0,0.00016964,2]
[393267169,1762405833289,-11992.7476478,0.0001698,2]
[393267170,1762405833298,-500.0,0.0001698,2]
[393267171,1762405833308,-3939.593198,0.00016981,2]
[393267172,1762405833527,-138065.3164991,0.00016981,2]
[393267173,1762405833538,-151.0,0.00016986,2]
[393267174,1762405833548,-151.0,0.00016986,2]
[393267175,1762405833559,-151.0,0.00016986,2]
[393267176,1762405833572,-168.861383,0.00016986,2]
[393267177,1762405833583,-371.186349,0.00016986,2]
[393267178,1762405833593,-151.0,0.00016986,2]
[393267179,1762405833604,-371.186349,0.00016986,2]
[393267180,1762405833615,-371.186349,0.00016986,2]
[393267181,1762405833625,-371.186349,0.00016986,2]
[393267182,1762405833636,-158.760107,0.00016986,2]
[393267183,1762405833646,-160.953111,0.00016986,2]
[393267184,1762405833656,-151.0,0.00016986,2]
[393267185,1762405833666,-151.0,0.00016986,2]
[393267186,1762405833676,-151.0,0.00016986,2]
[393267187,1762405833685,-151.0,0.00016986,2]
[393267188,1762405833695,-151.0,0.00016986,2]
[393267189,1762405833705,-161.257771,0.00016986,2]
[393267190,1762405833714,-162.639499,0.00016986,2]
[393267191,1762405833723,-157.064779,0.00016986,2]
[393267192,1762405833732,-151.0,0.00016986,2]
[393267193,1762405833741,-167.978826,0.00016986,2]
[393267194,1762405833750,-151.0,0.00016986,2]
[393267195,1762405833760,-151.0,0.00016986,2]
[393267196,1762405833769,-151.0,0.00016986,2]
[393267197,1762405833778,-151.0,0.00016986,2]
[393267198,1762405833787,-151.865307,0.00016986,2]
[393267199,1762405833795,-151.0,0.00016986,2]
[393267200,1762405833805,-153.748117,0.00016986,2]
[393267201,1762405833814,-153.748117,0.00016986,2]
[393267202,1762405833823,-153.748117,0.00016986,2]
[393267203,1762405833832,-153.748117,0.00016986,2]
[393267204,1762405833841,-151.0,0.00016986,2]
[393267205,1762405833850,-151.0,0.00016986,2]
[393267206,1762405833859,-151.0,0.00016986,2]
[393267207,1762405833868,-151.0,0.00016986,2]
[393267208,1762405833877,-151.0,0.00016986,2]
[393267209,1762405833887,-151.0,0.00016986,2]
[393267210,1762405833896,-151.0,0.00016986,2]
[393267211,1762405833905,-151.0,0.00016986,2]
[393267212,1762405833914,-151.0,0.00016986,2]
[393267213,1762405833924,-151.0,0.00016986,2]
[393267214,1762405833933,-151.0,0.00016986,2]
[393267215,1762405833942,-151.0,0.00016986,2]
[393267216,1762405833951,-151.0,0.00016986,2]
[393267217,1762405833960,-151.0,0.00016986,2]
[393267218,1762405833969,-249.190317,0.00016986,2]
[393267219,1762405833978,-151.0,0.00016986,2]
[393267220,1762405833987,-151.0,0.00016986,2]
[393267221,1762405833996,-249.190317,0.00016986,2]
[393267222,1762405834005,-151.0,0.00016986,2]
[393267223,1762405834014,-249.190317,0.00016986,2]
[393267224,1762405834024,-158.910665,0.00016986,2]
[393267225,1762405834033,-249.190317,0.00016986,2]
[393267226,1762405834042,-151.0,0.00016986,2]
[393267227,1762405834051,-151.0,0.00016986,2]
[393267228,1762405834060,-173.189992,0.00016986,2]
[393267229,1762405834069,-151.0,0.00016986,2]
[393267230,1762405834078,-151.0,0.00016986,2]
[393267231,1762405834088,-151.0,0.00016986,2]
[393267232,1762405834097,-151.0,0.00016986,2]
[393267233,1762405834106,-151.0,0.00016986,2]
[393267234,1762405834115,-151.0,0.00016986,2]
[393267235,1762405834124,-151.0,0.00016986,2]
[393267236,1762405834133,-476.442342,0.00016986,2]
[393267237,1762405834142,-476.442342,0.00016986,2]
[393267238,1762405834151,-476.442342,0.00016986,2]
[393267239,1762405834160,-476.442342,0.00016986,2]
[393267240,1762405834169,-151.0,0.00016986,2]
[393267241,1762405834179,-151.0,0.00016986,2]
[393267242,1762405834188,-151.0,0.00016986,2]
[393267243,1762405834196,-151.0,0.00016986,2]
[393267244,1762405834205,-152.337565,0.00016986,2]
[393267245,1762405834215,-151.0,0.00016986,2]
[393267246,1762405834224,-500.0,0.00016986,2]
[393267247,1762405834232,-2460.0,0.00016986,2]
[393267248,1762405834242,-173660.55,0.00016986,2]
[393267249,1762405834251,-500.0,0.00016996,2]
[393267250,1762405834261,-5022.62827144,0.00017,2]
[393267251,1762405834274,-1501.88313328,0.00017,2]
[393267252,1762405834293,-5083.00141795,0.00017,2]
[393267253,1762405834302,-250.0,0.00017,2]
[393267254,1762405834311,-151.0,0.00017,2]
[393267255,1762405834321,-151.81429351,0.00017,2]
[393267256,1762405834331,-502.72922,0.00017,2]
[393267257,1762405834340,-2000.0,0.00017,2]
[393267258,1762405834349,-250.0,0.00017045,2]
[393267259,1762405834358,-339.0,0.00017045,2]
[393267260,1762405834367,-300.0,0.00017045,2]
[393267261,1762405834376,-2500.0,0.00017045,2]
[393267262,1762405834385,-195.0,0.00017046,2]
[393267263,1762405834394,-195.0,0.00017046,2]
[393267264,1762405834403,-894.31656957,0.00017065,2]
[393267265,1762405834421,-2437.06359319,0.00017065,2]
[393267266,1762405834431,-301.2,0.00017067,2]
[393267267,1762405834439,-327.18,0.00017069,2]
[393267268,1762405834449,-982.0,0.00017073,2]
[393267269,1762405834458,-3600.0,0.000171,6]
[393267270,1762405834467,-150.0,0.00017101,2]
[393267271,1762405834476,-234.95051671,0.00017101,2]
[393267272,1762405834486,-150.0,0.00017101,2]
[393267273,1762405834499,-500.0,0.00017101,2]
[393267274,1762405834509,-500.0,0.00017101,2]
[393267275,1762405834519,-150.0,0.00017101,2]
[393267276,1762405834529,-196.23161218,0.00017101,2]
[393267277,1762405834539,-500.0,0.00017101,2]
[393267278,1762405834549,-571.0,0.00017101,2]
[393267279,1762405834559,-234.15007287,0.00017101,2]
[393267280,1762405834571,-500.0,0.00017101,2]
[393267281,1762405834581,-846.97383785,0.00017103,2]
[393267282,1762405834590,-166.66,0.00017125,2]
[393267283,1762405834600,-1316.90056949,0.00017133,2]
[393267284,1762405834609,-166.66,0.00017156,2]
[393267285,1762405834618,-610.868,0.00017173,2]
[393267286,1762405834627,-827.0,0.00017173,2]
[393267287,1762405834636,-1596.0,0.00017173,2]
[393267288,1762405834651,-1309.335,0.00017173,2]
[393267289,1762405834660,-872.887,0.00017173,2]
[393267290,1762405834670,-151.28,0.00017178,2]
[393267291,1762405834679,-300.79,0.00017178,2]
[393267292,1762405834688,-169.01,0.00017178,2]
[393267293,1762405834698,-151.0,0.000172,2]
[393267294,1762405834707,-151.0,0.000172,2]
[393267295,1762405834716,-151.0,0.000172,2]
[393267296,1762405834725,-151.0,0.000172,2]
[393267297,1762405834735,-151.0,0.000172,2]
[393267298,1762405834744,-151.0,0.000172,2]
[393267299,1762405834753,-151.0,0.000172,2]
[393267300,1762405834763,-151.0,0.000172,2]
[393267301,1762405834772,-158.083088,0.000172,2]
[393267302,1762405834782,-154.582505,0.000172,2]
[393267303,1762405834791,-151.0,0.000172,2]
[393267304,1762405834799,-151.746444,0.000172,2]
[393267305,1762405834809,-290.884509,0.000172,2]
[393267306,1762405834818,-151.0,0.000172,2]
[393267307,1762405834827,-158.161104,0.000172,2]
[393267308,1762405834836,-151.0,0.000172,2]
[393267309,1762405834845,-151.0,0.000172,2]
[393267310,1762405834854,-151.0,0.000172,2]
[393267311,1762405834863,-151.0,0.000172,2]
[393267312,1762405834873,-151.0,0.000172,2]
[393267313,1762405834883,-151.0,0.000172,2]
[393267314,1762405834896,-189.932706,0.000172,2]
[393267315,1762405834907,-151.0,0.000172,2]
[393267316,1762405834916,-151.0,0.000172,2]
[393267317,1762405834926,-151.0,0.000172,2]
[393267318,1762405834936,-151.0,0.000172,2]
[393267319,1762405834945,-151.0,0.000172,2]
[393267320,1762405834954,-151.0,0.000172,2]
[393267321,1762405834964,-156.208277,0.000172,2]
[393267322,1762405834973,-414.977228,0.000172,2]
[393267323,1762405834984,-414.977228,0.000172,2]
[393267324,1762405835001,-414.977228,0.000172,2]
[393267325,1762405835011,-414.977228,0.000172,2]
[393267326,1762405835021,-151.0,0.000172,2]
[393267327,1762405835032,-151.0,0.000172,2]
[393267328,1762405835042,-151.0,0.000172,2]
[393267329,1762405835052,-156.174928,0.000172,2]
[393267330,1762405835062,-151.0,0.000172,2]
[393267331,1762405835073,-151.0,0.000172,2]
[393267332,1762405835082,-151.0,0.000172,2]
[393267333,1762405835092,-158.88545,0.000172,2]
[393267334,1762405835102,-151.0,0.000172,2]
[393267335,1762405835111,-151.0,0.000172,2]
[393267336,1762405835121,-151.0,0.000172,2]
[393267337,1762405835131,-151.0,0.000172,2]
[393267338,1762405835143,-151.0,0.000172,2]
[393267339,1762405835152,-151.0,0.000172,2]
[393267340,1762405835162,-151.0,0.000172,2]
[393267341,1762405835171,-151.0,0.000172,2]
[393267342,1762405835180,-151.0,0.000172,2]
[393267343,1762405835190,-151.0,0.000172,2]
[393267344,1762405835200,-151.0,0.000172,2]
[393267345,1762405835209,-151.0,0.000172,2]
[393267346,1762405835219,-181.021455,0.000172,2]
[393267347,1762405835228,-151.0,0.000172,2]
[393267348,1762405835237,-151.0,0.000172,2]
[393267349,1762405835246,-170.952355,0.000172,2]
[393267350,1762405835255,-580.063919,0.000172,2]
[393267351,1762405835263,-157.114055,0.000172,2]
[393267352,1762405835273,-580.063919,0.000172,2]
[393267353,1762405835282,-580.063919,0.000172,2]
[393267354,1762405835291,-580.063919,0.000172,2]
[393267355,1762405835300,-151.0,0.000172,2]
[393267356,1762405835309,-282.606255,0.000172,2]
[393267357,1762405835318,-167.749093,0.000172,2]
[393267358,1762405835327,-199.945791,0.000172,2]
[393267359,1762405835336,-211.261005,0.000172,2]
[393267360,1762405835345,-211.261005,0.000172,2]
[393267361,1762405835354,-211.261005,0.000172,2]
[393267362,1762405835363,-211.261005,0.000172,2]
[393267363,1762405835372,-151.0,0.000172,2]
[393267364,1762405835382,-230.479001,0.000172,2]
[393267365,1762405835392,-151.0,0.000172,2]
[393267366,1762405835402,-230.479001,0.000172,2]
[393267367,1762405835411,-151.0,0.000172,2]
[393267368,1762405835421,-230.479001,0.000172,2]
[393267369,1762405835430,-151.0,0.000172,2]
[393267370,1762405835440,-151.0,0.000172,2]
[393267371,1762405835449,-230.479001,0.000172,2]
[393267372,1762405835459,-151.000007,0.000172,2]
[393267373,1762405835468,-151.0,0.000172,2]
[393267374,1762405835477,-422.545983,0.000172,2]
[393267375,1762405835489,-422.545983,0.000172,2]
[393267376,1762405835498,-151.0,0.000172,2]
[393267377,1762405835508,-151.0,0.000172,2]
[393267378,1762405835517,-209.209248,0.000172,2]
[393267379,1762405835527,-422.545983,0.000172,2]
[393267380,1762405835536,-151.0,0.000172,2]
[393267381,1762405835545,-151.0,0.000172,2]
[393267382,1762405835554,-422.545983,0.000172,2]
[393267383,1762405835564,-151.0,0.000172,2]
[393267384,1762405835580,-151.0,0.000172,2]
[393267385,1762405835594,-151.0,0.000172,2]
[393267386,1762405835604,-151.0,0.000172,2]
[393267387,1762405835613,-151.0,0.000172,2]
[393267388,1762405835623,-152.451856,0.000172,2]
[393267389,1762405835632,-215.804278,0.000172,2]
[393267390,1762405835642,-151.0,0.000172,2]
[393267391,1762405835651,-151.0,0.000172,2]
[393267392,1762405835660,-151.0,0.000172,2]
[393267393,1762405835669,-151.0,0.000172,2]
[393267394,1762405835680,-151.0,0.000172,2]
[393267395,1762405835689,-151.0,0.000172,2]
[393267396,1762405835698,-151.0,0.000172,2]
[393267397,1762405835707,-151.0,0.000172,2]
[393267398,1762405835716,-162.453102,0.000172,2]
[393267399,1762405835725,-151.0,0.000172,2]
[393267400,1762405835734,-152.117009,0.000172,2]
[393267401,1762405835745,-154.150333,0.000172,2]
[393267402,1762405835753,-151.0,0.000172,2]
[393267403,1762405835762,-151.0,0.000172,2]
[393267404,1762405835771,-151.0,0.000172,2]
[393267405,1762405835780,-151.0,0.000172,2]
[393267406,1762405835789,-151.0,0.000172,2]
[393267407,1762405835798,-151.0,0.000172,2]
[393267408,1762405835807,-192.577312,0.000172,2]
[393267409,1762405835815,-152.366405,0.000172,2]
[393267410,1762405835824,-151.0,0.000172,2]
[393267411,1762405835834,-192.577312,0.000172,2]
[393267412,1762405835843,-170.295859,0.000172,2]
[393267413,1762405835852,-192.577312,0.000172,2]
[393267414,1762405835862,-192.577312,0.000172,2]
[393267415,1762405835871,-151.0,0.000172,2]
[393267416,1762405835880,-151.0,0.000172,2]
[393267417,1762405835889,-151.0,0.000172,2]
[393267418,1762405835899,-151.0,0.000172,2]
[393267419,1762405835908,-151.0,0.000172,2]
[393267420,1762405835917,-151.0,0.000172,2]
[393267421,1762405835926,-151.0,0.000172,2]
[393267422,1762405835935,-151.0,0.000172,2]
[393267423,1762405835944,-151.0,0.000172,2]
[393267424,1762405835953,-158.551674,0.000172,2]
[393267425,1762405835962,-151.0,0.000172,2]
[393267426,1762405835971,-151.0,0.000172,2]
[393267427,1762405835980,-151.0,0.000172,2]
[393267428,1762405835989,-151.0,0.000172,2]
[393267429,1762405835998,-1505.165745,0.000172,2]
[393267430,1762405836006,-967.888522,0.000172,2]
[393267431,1762405836015,-1505.165745,0.000172,2]
[393267432,1762405836025,-154.174134,0.000172,2]
[393267433,1762405836035,-151.0,0.000172,2]
[393267434,1762405836044,-967.888522,0.000172,2]
[393267435,1762405836053,-1505.165745,0.000172,2]
[393267436,1762405836062,-967.888522,0.000172,2]
[393267437,1762405836071,-151.0,0.000172,2]
[393267438,1762405836080,-155.265554,0.000172,2]
[393267439,1762405836089,-967.888522,0.000172,2]
[393267440,1762405836098,-1505.165745,0.000172,2]
[393267441,1762405836107,-151.823142,0.000172,2]
[393267442,1762405836116,-5500.0,0.000172,6]
[393267443,1762405836126,-301.2,0.00017204,2]
[393267444,1762405836135,-327.18,0.00017206,2]
[393267445,1762405836145,-6185.0,0.00017206,2]
[393267446,1762405836154,-1188.0,0.00017206,2]
[393267447,1762405836163,-905.0,0.00017206,2]
[393267448,1762405836173,-2155.448,0.00017206,2]
[393267449,1762405836181,-6658.0,0.00017206,2]
[393267450,1762405836191,-562.431,0.00017206,2]
[393267451,1762405836201,-982.0,0.00017227,2]
[393267452,1762405836211,-929.33,0.0001723,2]
[393267453,1762405836220,-150.0,0.00017238,2]
[393267454,1762405836229,-152.07896348,0.00017238,2]
[393267455,1762405836238,-500.0,0.00017238,2]
[393267456,1762405836247,-500.0,0.00017238,2]
[393267457,1762405836257,-200.0,0.00017238,2]
[393267458,1762405836266,-500.0,0.00017238,2]
[393267460,1762405836275,-571.0,0.00017238,2]
[393267462,1762405836284,-500.0,0.00017238,2]
[393267464,1762405836293,-982.0,0.00017238,2]
[393267465,1762405836302,-502.72922,0.0001724,2]
[393267466,1762405836311,-392.11374509,0.00017253,2]
[393267467,1762405836320,-150.0,0.0001726,2]
[393267468,1762405836329,-150.0,0.0001726,2]
[393267469,1762405836338,-150.0,0.0001726,2]
[393267470,1762405836347,-150.0,0.0001726,2]
[393267471,1762405836356,-846.97383785,0.00017263,2]
[393267472,1762405836365,-982.0,0.00017292,2]
[393267473,1762405836374,-1228.92097086,0.00017293,2]
[393267474,1762405836383,-150.94971117,0.000173,2]
[393267475,1762405836392,-151.0,0.000173,2]
[393267476,1762405836401,-151.481973,0.000173,2]
[393267477,1762405836410,-151.0,0.000173,2]
[393267478,1762405836419,-152.221895,0.000173,2]
[393267479,1762405836428,-151.0,0.000173,2]
[393267480,1762405836437,-151.0,0.000173,2]
[393267481,1762405836446,-151.0,0.000173,2]
[393267482,1762405836455,-151.0,0.000173,2]
[393267483,1762405836465,-151.0,0.000173,2]
[393267484,1762405836474,-164.946566,0.000173,2]
[393267485,1762405836483,-151.0,0.000173,2]
[393267486,1762405836497,-153.757721,0.000173,2]
[393267487,1762405836506,-7300.0,0.000173,6]
[393267488,1762405836515,-1000.0,0.00017302,2]
[393267489,1762405836526,-301.23,0.00017341,2]
[393267490,1762405836537,-607.77630489,0.00017341,2]
[393267491,1762405836546,-327.18,0.00017343,2]
[393267492,1762405836556,-3331.38016276,0.00017344,2]
[393267493,1762405836567,-500.0,0.0001736,2]
[393267494,1762405836577,-200.0,0.0001736,2]
[393267495,1762405836586,-150.0,0.00017375,2]
[393267496,1762405836596,-500.0,0.00017375,2]
[393267497,1762405836609,-500.0,0.00017375,2]
[393267498,1762405836618,-500.0,0.00017375,2]
[393267499,1762405836628,-571.0,0.00017375,2]
[393267500,1762405836637,-500.0,0.00017375,2]
[393267501,1762405836647,-259.0,0.00017388,2]
[393267502,1762405836656,-209.0,0.00017388,2]
[393267503,1762405836666,-150.0,0.00017388,2]
[393267504,1762405836675,-200.0,0.00017388,2]
[393267505,1762405836684,-206.391,0.00017388,2]
[393267506,1762405836693,-250.0,0.00017388,2]
[393267507,1762405836702,-215.976,0.00017388,2]
[393267508,1762405836711,-152.577,0.00017388,2]
[393267509,1762405836720,-188.67,0.00017388,2]
[393267510,1762405836729,-261.388,0.00017388,2]
[393267511,1762405836738,-188.853,0.00017388,2]
[393267512,1762405836747,-269.869,0.00017388,2]
[393267513,1762405836757,-162.078,0.00017388,2]
[393267514,1762405836769,-209.824,0.00017388,2]
[393267515,1762405836778,-266.384,0.00017388,2]
[393267516,1762405836787,-220.782,0.00017388,2]
[393267517,1762405836796,-3423.0,0.00017388,2]
[393267518,1762405836808,-1315.0,0.00017388,2]
[393267519,1762405836817,-574.0,0.00017388,2]
[393267520,1762405836827,-210.67,0.00017398,2]
[393267521,1762405836836,-9200.0,0.000174,6]
[393267522,1762405836845,-982.0,0.00017419,2]
[393267523,1762405836854,-171.03845643,0.0001742,2]
[393267524,1762405836863,-846.97383785,0.00017422,2]
[393267525,1762405836872,-982.0,0.00017446,2]
[393267526,1762405836881,-982.0,0.00017447,2]
[393267527,1762405836891,-3927.932,0.00017467,2]
[393267528,1762405836901,-177.028,0.00017467,2]
[393267529,1762405836910,-327.19,0.0001748,2]
[393267530,1762405836919,-400.00000005,0.000175,3]
[393267531,1762405836929,-1800.0,0.000175,6]
[393267532,1762405836938,-929.33,0.00017504,2]
[393267533,1762405836947,-187.63308234,0.00017512,2]
[393267534,1762405836956,-302.87549642,0.00017512,2]
[393267535,1762405836965,-500.0,0.00017512,2]
[393267536,1762405836974,-312.07678576,0.00017512,2]
[393267537,1762405836983,-571.0,0.00017512,2]
[393267538,1762405836993,-500.0,0.00017512,2]
[393267539,1762405837006,-982.0,0.00017513,2]
[393267540,1762405837017,-162.64913491,0.00017524,2]
[393267541,1762405837026,-846.97383785,0.00017581,2]
[393267542,1762405837036,-1800.0,0.000176,6]
[393267543,1762405837045,-477.03,0.00017605,2]
[393267544,1762405837054,-3331.38016276,0.00017622,2]
[393267545,1762405837063,-2437.46119648,0.00017626,2]
[393267546,1762405837073,-500.0,0.00017649,2]
[393267547,1762405837082,-571.0,0.00017649,2]
[393267548,1762405837091,-500.0,0.00017649,2]
[393267549,1762405837100,-729.22996647,0.00017664,2]
[393267550,1762405837110,-455.57,0.00017664,2]
[393267551,1762405837119,-166.66,0.00017672,2]
[393267552,1762405837129,-5888.0,0.00017674,2]
[393267553,1762405837138,-403.0,0.000177,5]
[393267554,1762405837148,-1800.0,0.000177,6]
[393267555,1762405837157,-1228.92097086,0.000177,2]
[393267556,1762405837167,-846.97383785,0.00017741,2]
[393267557,1762405837176,-502.72922,0.0001775,2]
[393267558,1762405837185,-202.458185,0.00017759,3]
[393267559,1762405837195,-228.999142,0.00017759,3]
[393267560,1762405837207,-929.33,0.00017778,2]
[393267561,1762405837216,-2500.0,0.00017786,3]
[393267562,1762405837225,-500.0,0.00017786,2]